bitfinex/quotes_ETHUSD_20250730
["timestamp","ask_amount","ask_price","bid_price","bid_amount"]
[1753894688761,9.4211,3796.5,3796.4,0.001]
[1753894689164,39.4211,3796.5,3796.4,0.001]
[1753894689544,35.3771,3796.5,3796.4,0.001]
[1753894689869,39.4211,3796.5,3796.4,0.001]
[1753894690449,38.9834,3796.5,3796.4,0.001]
[1753894690660,11.55366461,3796.5,3796.4,0.001]
[1753894690860,8.9834,3796.5,3796.4,0.001]
[1753894691338,39.4211,3796.5,3796.4,0.001]
[1753894694276,35.3771,3796.5,3796.4,0.001]
[1753894694476,39.4211,3796.5,3796.4,0.001]
[1753894694639,9.4211,3796.5,3796.4,0.001]
[1753894694845,8.94380605,3796.5,3796.4,0.001]
[1753894695080,4.09400605,3796.5,3796.4,0.001]
[1753894695283,7.175,3796.5,3796.4,0.001]
[1753894696002,8.0643,3796.5,3796.4,0.001]
[1753894696867,38.8366,3796.5,3796.4,0.001]
[1753894697067,39.3866,3796.5,3796.4,0.001]
[1753894700971,9.3866,3796.5,3796.4,0.001]
[1753894701277,41.95686461,3796.5,3796.4,0.001]
[1753894703387,37.91386461,3796.5,3796.4,0.001]
[1753894703587,41.95686461,3796.5,3796.4,0.001]
[1753894703803,40.64276961,3796.5,3796.4,0.001]
[1753894704089,40.78466461,3796.5,3796.4,0.001]
[1753894704290,41.21996461,3796.5,3796.4,0.001]
[1753894704911,11.21996461,3796.5,3796.4,0.001]
[1753894705110,38.6497,3796.5,3796.4,0.001]
[1753894707389,39.4323,3796.5,3796.4,0.001]
[1753894708020,8.997,3796.5,3796.4,0.001]
[1753894708223,38.997,3796.5,3796.4,0.001]
[1753894708420,39.4323,3796.5,3796.4,0.001]
[1753894708834,42.00256461,3796.5,3796.4,0.001]
[1753894709601,42.00456461,3796.5,3796.4,0.001]
[1753894710398,44.63856961,3796.5,3796.4,0.001]
[1753894710924,47.78674237,3796.5,3796.4,0.001]
[1753894711511,42.00456461,3796.5,3796.4,0.001]
[1753894712121,12.00456461,3796.5,3796.4,0.001]
[1753894712301,42.00456461,3796.5,3796.4,0.001]
[1753894714727,41.07986461,3796.5,3796.4,0.001]
[1753894715323,10.29626461,3796.5,3796.4,0.001]
[1753894715631,7.726,3796.5,3796.4,0.001]
[1753894716194,37.726,3796.5,3796.4,0.001]
[1753894716803,3.134,3796.5,3796.4,0.001]
[1753894717003,4.176,3796.5,3796.4,0.9416]
[1753894720908,4.176,3796.5,3796.4,0.4823]
[1753894721510,4.176,3796.5,3796.4,0.001]
[1753894722542,7.175,3796.5,3796.4,0.001]
[1753894722745,3.134,3796.5,3796.4,0.001]
[1753894722945,0.134,3796.5,3796.4,1.7475]
[1753894723242,0.002,3796.5,3796.4,2.50466778]
[1753894725720,0.002,3796.5,3796.4,2.66300852]
[1753894726246,0.002,3796.5,3796.4,2.63666778]
[1753894726458,0.002,3796.5,3796.4,2.66300852]
[1753894728731,0.002,3796.5,3796.4,2.63666778]
[1753894728932,0.002,3796.5,3796.4,5.2970829]
[1753894729263,0.002,3796.5,3796.4,5.27074216]
[1753894729853,0.002,3796.9,3796.4,5.27074216]
[1753894729854,0.002,3796.9,3796.8,2.63379688]
[1753894730121,1.00142295,3798.7,3797.0,0.7794]
[1753894730122,0.132,3798.4,3797.0,0.7794]
[1753894730347,4.174,3798.5,3798.0,6.56157776]
[1753894730545,0.134,3798.5,3798.0,6.69357776]
[1753894730749,0.134,3798.5,3798.0,7.61957776]
[1753894731885,0.002,3798.5,3798.0,10.25254247]
[1753894732045,0.002,3798.5,3798.0,11.80366828]
[1753894732682,0.002,3798.5,3798.0,9.17070357]
[1753894733676,0.002,3798.5,3798.0,11.80366828]
[1753894734592,0.002,3798.5,3798.0,9.17070357]
[1753894736159,0.002,3798.5,3798.0,7.05070357]
[1753894737157,0.002,3798.5,3798.0,9.68366828]
[1753894737656,0.002,3798.5,3798.0,7.05070357]
[1753894739974,0.002,3798.5,3798.0,9.68366828]
[1753894741373,0.002,3798.5,3798.0,7.05070357]
[1753894741899,0.002,3798.5,3798.0,6.57590357]
[1753894742097,0.472,3798.3,3798.0,8.61057776]
[1753894742460,0.472,3798.4,3798.0,0.9114]
[1753894742665,0.002,3798.5,3798.0,1.8374]
[1753894742866,0.002,3798.5,3798.0,1.86372964]
[1753894743067,0.002,3798.5,3798.0,4.47036471]
[1753894743267,0.002,3798.5,3798.0,6.18895889]
[1753894743609,0.002,3798.5,3798.0,6.16262925]
[1753894743809,0.04,3798.9,3798.8,6.58117776]
[1753894743983,0.04,3798.9,3798.8,10.61817776]
[1753894744180,0.04,3798.9,3798.8,11.20137776]
[1753894745006,0.04,3798.9,3798.8,5.4192]
[1753894745205,0.04,3798.9,3798.8,4.968]
[1753894745380,0.04,3798.9,3798.8,4.9943241]
[1753894745575,0.04,3798.9,3798.8,5.61035315]
[1753894745781,0.04,3798.9,3798.8,5.58402905]
[1753894747305,0.04,3798.9,3798.8,6.03522905]
[1753894747793,0.04,3798.9,3798.8,9.14243928]
[1753894751898,0.04,3799.9,3799.5,2.6319015]
[1753894752086,0.04,3799.9,3799.7,0.7702]
[1753894752407,0.04,3799.9,3799.8,4.19251717]
[1753894752599,0.512,3799.9,3799.8,4.19251717]
[1753894752778,0.9793,3799.9,3799.8,4.19251717]
[1753894752979,0.9793,3799.9,3799.8,4.1662]
[1753894753205,0.9793,3799.9,3799.8,0.1312]
[1753894753510,0.9793,3799.9,3799.8,4.1662]
[1753894754012,0.9793,3799.9,3799.8,4.035]
[1753894755271,0.04,3799.9,3799.8,4.035]
[1753894755474,0.04,3799.9,3799.8,8.81976924]
[1753894755694,0.04,3799.9,3799.8,6.18805179]
[1753894755906,0.04,3799.9,3799.8,5.26205179]
[1753894756494,0.04,3799.9,3799.8,1.22705179]
[1753894756734,0.04,3799.9,3799.8,7.47351745]
[1753894757139,0.04,3799.9,3799.8,4.8418]
[1753894758135,0.9385,3799.9,3799.7,0.1312]
[1753894758453,0.04,3799.9,3799.8,4.034]
[1753894758835,0.9385,3799.9,3799.8,4.034]
[1753894761566,0.04,3799.9,3799.8,4.034]
[1753894761744,0.04,3799.9,3799.8,5.69272]
[1753894761917,0.04,3799.9,3799.8,6.12752]
[1753894762117,0.04,3799.9,3799.8,5.69272]
[1753894762838,0.04,3799.9,3799.8,5.20172]
[1753894763044,0.5103,3799.9,3799.8,4.45052]
[1753894763723,0.9385,3799.9,3799.8,4.45052]
[1753894764451,0.5103,3799.9,3799.8,4.45052]
[1753894765030,0.5103,3799.9,3799.8,0.41652]
[1753894765256,0.9385,3799.9,3799.7,0.1312]
[1753894765452,0.9385,3799.9,3799.8,4.033]
[1753894765453,0.5103,3799.9,3799.8,4.033]
[1753894765957,0.9385,3799.9,3799.8,4.033]
[1753894768963,0.9385,3799.9,3799.7,0.1312]
[1753894769128,0.04,3799.9,3799.8,4.033]
[1753894769660,0.4682,3799.9,3799.8,4.033]
[1753894769865,0.9385,3799.9,3799.1,0.7554]
[1753894770168,0.8985,3799.8,3799.5,0.1312]
[1753894770523,0.4703,3799.7,3799.5,0.1312]
[1753894771961,0.4703,3799.7,3799.5,4.1642]
[1753894772381,0.04,3799.9,3799.6,1.27511695]
[1753894772578,0.04,3799.9,3799.7,2.6317701]
[1753894772745,0.04,3799.9,3799.8,10.65088814]
[1753894772950,0.04,3799.9,3799.8,10.75577097]
[1753894774436,0.04,3799.9,3799.8,13.38748842]
[1753894774640,0.04,3799.9,3799.8,14.58533425]
[1753894774874,0.04,3799.9,3799.8,6.18834583]
[1753894775080,0.04,3799.9,3799.8,8.82006328]
[1753894775237,0.04,3799.9,3799.8,9.31106328]
[1753894775437,0.04,3799.9,3799.8,9.74586328]
[1753894776062,0.04,3799.9,3799.8,6.18834583]
[1753894776869,0.9385,3799.9,3799.8,0.1312]
[1753894777708,0.9405,3799.9,3799.8,0.1312]
[1753894781207,0.042,3799.9,3799.8,0.1312]
[1753894781503,0.9405,3799.9,3799.3,0.7896]
[1753894781684,0.4282,3799.8,3799.6,0.1312]
[1753894781999,1.653,3799.8,3799.6,0.1312]
[1753894782488,0.8985,3799.7,3799.6,0.1312]
[1753894783188,0.042,3799.9,3799.6,3.54844958]
[1753894783377,0.042,3799.9,3799.8,0.1312]
[1753894783694,0.042,3799.9,3799.8,2.76291745]
[1753894784055,0.042,3799.9,3799.8,3.68871745]
[1753894784799,0.002,3800.3,3800.2,3.96684045]
[1753894784995,0.002,3800.3,3800.2,19.87071203]
[1753894785293,0.002,3800.3,3800.2,11.59867678]
[1753894785504,0.002,3800.3,3800.2,11.10767678]
[1753894785997,0.9005,3800.3,3800.2,4.031]
[1753894786212,0.002,3800.3,3800.2,4.031]
[1753894787057,0.933,3800.3,3799.7,0.8329]
[1753894787291,0.933,3800.3,3799.8,4.031]
[1753894787292,0.4769,3800.2,3799.8,4.031]
[1753894787498,0.4769,3800.2,3799.9,0.48639]
[1753894787671,0.002,3800.3,3799.9,0.48639]
[1753894787875,0.002,3800.3,3800.2,2.63144045]
[1753894788096,0.002,3800.3,3800.2,6.68875485]
[1753894788301,0.002,3800.3,3800.2,9.59308606]
[1753894788483,0.002,3800.3,3800.2,10.40278606]
[1753894789115,0.002,3800.3,3800.2,13.95278606]
[1753894790023,0.002,3800.3,3800.2,13.04548606]
[1753894790213,0.002,3800.3,3800.2,13.50688606]
[1753894790522,0.002,3800.3,3800.2,12.95688606]
[1753894791228,0.002,3800.3,3800.2,12.49548606]
[1753894794605,0.002,3800.3,3800.2,12.95688606]
[1753894794800,0.002,3800.3,3800.2,14.08398606]
[1753894795008,0.002,3800.6,3800.5,3.95383273]
[1753894795195,0.002,3800.6,3800.5,8.55947272]
[1753894795392,0.002,3800.6,3800.5,9.5716604]
[1753894795998,0.002,3800.6,3800.5,8.6643604]
[1753894796198,0.002,3800.6,3800.5,9.5716604]
[1753894796599,0.002,3800.6,3800.5,12.5716604]
[1753894798231,0.002,3801.2,3800.9,2.63095582]
[1753894798433,0.002,3801.2,3800.9,19.76140062]
[1753894798632,0.002,3801.2,3800.9,19.86629107]
[1753894798838,0.002,3801.2,3800.9,20.77359107]
[1753894800213,0.002,3801.5,3800.9,20.77359107]
[1753894800214,0.002,3801.5,3801.2,3.96169196]
[1753894800428,0.002,3801.6,3801.5,6.96154057]
[1753894800611,0.002,3801.6,3801.5,10.99154057]
[1753894800817,0.002,3801.6,3801.5,11.89884057]
[1753894801140,0.002,3801.6,3801.5,6.96154057]
[1753894801310,0.002,3801.6,3801.5,11.4138756]
[1753894801505,0.002,3801.6,3801.5,12.4252756]
[1753894801854,0.002,3801.6,3801.5,12.8711756]
[1753894802405,0.002,3801.6,3801.5,12.4252756]
[1753894802716,0.002,3801.6,3801.5,11.4138756]
[1753894803326,0.002,3801.6,3801.5,8.78333503]
[1753894803527,0.002,3801.6,3801.5,11.4138756]
[1753894804042,0.002,3801.6,3801.5,12.4252756]
[1753894804646,0.002,3801.6,3801.5,11.9638756]
[1753894805652,0.4789,3801.6,3801.5,11.9638756]
[1753894805953,0.933,3801.6,3801.4,0.1312]
[1753894806254,0.7949,3801.5,3801.4,0.1312]
[1753894806454,1.7259,3801.5,3801.4,0.1312]
[1753894808014,1.7259,3801.5,3801.3,4.029]
[1753894808240,0.931,3801.4,3801.2,4.1602]
[1753894808547,0.931,3801.3,3801.2,4.1602]
[1753894809155,0.931,3801.3,3801.2,4.18650748]
[1753894809362,0.7949,3801.5,3801.2,4.18650748]
[1753894809553,0.4769,3801.4,3801.2,4.86824056]
[1753894809732,0.4769,3801.4,3801.2,4.73704056]
[1753894809927,0.002,3801.6,3801.4,2.63059542]
[1753894810241,0.002,3801.6,3801.3,0.1312]
[1753894810242,0.002,3801.6,3801.5,15.58008122]
[1753894810436,0.002,3801.6,3801.5,17.44302169]
[1753894810644,0.002,3801.6,3801.5,14.81248112]
[1753894811064,0.002,3801.6,3801.5,17.44302169]
[1753894811826,0.002,3801.6,3801.5,14.81248112]
[1753894812162,0.002,3801.6,3801.5,8.67998644]
[1753894812464,0.002,3801.6,3801.5,4.1602]
[1753894812658,0.933,3801.6,3801.5,4.1602]
[1753894815280,0.933,3801.6,3801.5,6.79074057]
[1753894815444,0.002,3801.6,3801.5,6.79074057]
[1753894816666,0.002,3801.6,3801.5,15.55377582]
[1753894816835,0.002,3801.6,3801.5,17.41776042]
[1753894817032,0.002,3801.6,3801.5,14.78721985]
[1753894817364,0.908,3801.6,3801.5,6.0241846]
[1753894817569,0.908,3801.6,3801.5,4.1602]
[1753894817766,0.002,3801.6,3801.5,7.60324057]
[1753894820379,0.002,3801.6,3801.5,17.81017582]
[1753894820780,0.002,3801.6,3801.5,20.81017582]
[1753894821136,0.002,3801.6,3801.5,20.81117582]
[1753894822553,0.002,3801.6,3801.5,19.91727582]
[1753894824040,0.002,3801.6,3801.5,20.37267582]
[1753894825084,0.002,3801.6,3801.5,15.88827582]
[1753894825300,0.908,3801.6,3801.5,7.1602]
[1753894825653,0.4623,3801.6,3801.5,9.79074057]
[1753894825858,0.4877,3801.9,3801.6,3.0]
[1753894826072,0.042,3801.9,3801.8,0.1312]
[1753894826604,0.042,3801.9,3801.8,0.15750333]
[1753894826798,0.042,3801.9,3801.8,2.78783633]
[1753894827000,0.042,3801.9,3801.8,4.12373633]
[1753894827201,0.042,3801.9,3801.8,6.26548037]
[1753894827375,0.042,3801.9,3801.8,6.23917704]
[1753894827701,0.042,3801.9,3801.8,5.80067704]
[1753894828059,0.042,3801.9,3801.8,1.37904404]
[1753894828259,0.948,3801.9,3801.8,1.37904404]
[1753894829107,0.948,3801.9,3801.8,4.1592]
[1753894831951,0.042,3801.9,3801.8,4.1592]
[1753894832062,0.5023,3801.9,3801.8,4.1592]
[1753894832262,0.948,3801.9,3801.8,4.1592]
[1753894832694,0.948,3801.9,3801.8,6.789533]
[1753894832695,0.042,3801.9,3801.8,6.789533]
[1753894832882,0.042,3801.9,3801.8,8.91056159]
[1753894833225,0.042,3801.9,3801.8,10.21606159]
[1753894833370,0.042,3801.9,3801.8,11.10996159]
[1753894833578,0.042,3801.9,3801.8,10.21606159]
[1753894834090,0.042,3801.9,3801.8,10.67146159]
[1753894834697,0.042,3801.9,3801.8,10.21606159]
[1753894838509,0.042,3801.9,3801.8,9.46056159]
[1753894842513,0.042,3801.9,3801.8,6.83022859]
[1753894842715,0.042,3801.9,3801.8,6.28022859]
[1753894842716,0.948,3801.9,3801.8,6.28022859]
[1753894843506,0.948,3801.9,3801.8,4.1592]
[1753894844019,0.002,3802.3,3802.2,2.63005628]
[1753894844180,0.5003,3802.9,3802.3,3.55]
[1753894844381,0.5003,3802.9,3802.7,8.76303525]
[1753894844585,0.5003,3802.9,3802.8,4.028]
[1753894844920,0.4857,3802.9,3802.8,4.028]
[1753894845512,0.946,3802.9,3802.8,4.028]
[1753894849201,0.04,3802.9,3802.8,7.9808]
[1753894849391,0.04,3802.9,3802.8,20.13127656]
[1753894849930,0.04,3802.9,3802.8,16.56777656]
[1753894850090,0.04,3802.9,3802.8,20.59477656]
[1753894850291,0.04,3802.9,3802.8,21.06587656]
[1753894850991,0.04,3802.9,3802.8,20.59477656]
[1753894851219,0.04,3802.9,3802.8,21.26825365]
[1753894852225,0.04,3802.9,3802.8,20.79715365]
[1753894853290,0.04,3802.9,3802.8,21.26825365]
[1753894853705,0.9529,3803.9,3803.6,2.6290811]
[1753894853902,0.04,3803.9,3803.7,4.05329019]
[1753894854160,0.04,3803.9,3803.8,12.09947473]
[1753894854292,0.04,3803.9,3803.8,13.00878524]
[1753894854720,0.04,3803.9,3803.8,16.77428524]
[1753894855236,0.789955,3807.4,3805.5,2.62777558]
[1753894855408,0.4666,3806.4,3805.8,3.17756844]
[1753894855609,0.04,3807.9,3805.8,3.17756844]
[1753894855610,0.4666,3806.2,3806.1,3.17736134]
[1753894855836,0.9129,3806.2,3806.1,6.69236134]
[1753894856040,0.9129,3806.2,3806.1,4.1962]
[1753894856226,0.9129,3806.2,3806.1,6.82356134]
[1753894856403,0.9129,3806.2,3806.1,0.1312]
[1753894856608,1.701,3806.2,3806.1,4.065]
[1753894856819,1.8711,3806.2,3805.8,4.066]
[1753894857004,0.9129,3806.1,3805.9,0.1312]
[1753894857422,0.9129,3806.0,3805.9,0.1312]
[1753894858144,1.6854,3806.0,3805.8,0.1312]
[1753894858306,0.7725,3806.0,3805.8,0.1312]
[1753894858507,0.9129,3805.9,3805.8,0.1312]
[1753894858739,1.09845,3805.9,3805.8,0.1312]
[1753894859117,1.09845,3805.9,3805.7,0.1312]
[1753894859332,0.9129,3805.8,3805.4,4.065]
[1753894859609,0.9129,3805.7,3805.5,0.1312]
[1753894859930,0.9129,3805.6,3805.5,0.1312]
[1753894860508,0.4463,3805.8,3805.5,0.1312]
[1753894860714,0.4666,3805.7,3805.4,4.065]
[1753894861251,0.7725,3806.0,3805.6,0.1312]
[1753894861422,0.7725,3806.0,3805.7,4.09027637]
[1753894861623,1.2802,3806.4,3805.9,0.1312]
[1753894861826,1.7265,3806.4,3806.0,4.064]
[1753894862025,1.7265,3806.4,3806.3,0.1312]
[1753894862238,1.2599,3806.4,3806.3,0.1312]
[1753894862410,0.8136,3806.4,3806.3,0.1312]
[1753894862746,1.2599,3806.4,3806.3,0.1312]
[1753894862910,0.7588,3806.8,3806.3,0.1312]
[1753894863110,0.4463,3807.0,3806.4,2.62712989]
[1753894863324,1.2254,3807.1,3806.7,0.1312]
[1753894863325,0.7588,3807.1,3806.7,0.1312]
[1753894863524,0.4666,3807.4,3806.8,0.02626878]
[1753894863848,0.4666,3807.4,3806.8,4.066]
[1753894864254,0.4666,3807.3,3806.8,4.066]
[1753894864474,0.7588,3807.5,3806.7,2.75809614]
[1753894864475,0.4463,3807.2,3806.7,0.1312]
[1753894864777,0.7588,3807.5,3806.8,4.065]
[1753894864980,0.8151,3806.8,3806.7,0.1312]
[1753894865264,1.728,3806.8,3806.7,0.1312]
[1753894865460,1.728,3806.8,3806.5,4.067]
[1753894865761,0.9129,3806.7,3806.6,0.1312]
[1753894867163,0.8151,3806.8,3806.6,0.15747016]
[1753894867321,0.5066,3806.9,3806.6,0.1312]
[1753894867522,0.4863,3806.9,3806.6,0.1312]
[1753894867721,0.9129,3806.8,3806.4,4.067]
[1753894867964,0.04,3806.9,3806.0,0.55]
[1753894868164,0.04,3806.9,3806.7,0.1312]
[1753894868460,0.7585,3806.8,3806.5,0.1312]
[1753894868667,1.2048,3806.8,3806.5,0.1312]
[1753894868841,0.9129,3806.7,3806.5,0.1312]
[1753894869269,0.9129,3806.6,3806.5,0.1312]
[1753894872673,0.7585,3806.8,3806.5,0.1312]
[1753894873039,0.4666,3806.7,3806.5,0.1312]
[1753894873241,0.9129,3806.7,3806.5,0.1312]
[1753894873442,0.4666,3806.6,3806.5,0.1312]
[1753894873671,0.9129,3806.6,3806.5,0.1312]
[1753894874355,1.08404,3806.6,3805.6,0.41962]
[1753894874533,0.17114,3806.6,3806.1,0.1312]
[1753894874737,0.9129,3806.5,3805.1,0.8327]
[1753894874947,1.8579,3806.4,3805.9,0.1312]
[1753894875240,0.9129,3806.3,3805.9,0.1312]
[1753894875632,0.945,3806.4,3805.9,0.1312]
[1753894875845,0.9129,3806.2,3805.9,0.1312]
[1753894876377,0.9129,3806.1,3805.9,0.1312]
[1753894876764,0.9214,3806.0,3805.9,0.1312]
[1753894878980,0.479,3806.7,3806.0,2.6273895]
[1753894879168,0.479,3806.7,3806.0,2.62742969]
[1753894879352,0.479,3806.7,3806.5,0.1312]
[1753894879758,0.04,3806.9,3806.5,0.1312]
[1753894879960,0.479,3806.8,3806.5,0.1312]
[1753894880346,0.04,3806.9,3806.6,0.02627016]
[1753894880545,0.04,3806.9,3806.8,0.1312]
[1753894881177,0.04,3806.9,3806.8,0.15746878]
[1753894881980,0.04,3806.9,3806.8,0.1312]
[1753894882750,0.9614,3806.9,3806.8,0.1312]
[1753894883182,0.7689,3806.8,3806.5,4.059]
[1753894883479,0.7689,3806.8,3806.7,0.1312]
[1753894883979,1.6903,3806.8,3806.7,0.1312]
[1753894885161,1.6903,3806.8,3806.6,0.1312]
[1753894885361,1.2113,3806.8,3806.6,0.1312]
[1753894885575,0.9214,3806.7,3806.6,0.1312]
[1753894885884,0.7689,3806.8,3806.6,0.1312]
[1753894886190,0.042,3806.9,3806.6,0.1312]
[1753894886682,0.042,3806.9,3806.8,0.1312]
[1753894888485,0.042,3806.9,3806.8,2.75807821]
[1753894888681,0.042,3806.9,3806.8,0.1312]
[1753894889159,0.042,3806.9,3806.8,3.30807821]
[1753894889364,0.042,3806.9,3806.8,4.23247821]
[1753894889668,0.042,3806.9,3806.8,7.07987124]
[1753894890285,0.042,3806.9,3806.8,6.62237124]
[1753894890586,0.042,3806.9,3806.8,7.07987124]
[1753894891861,0.042,3806.9,3806.8,10.07987124]
[1753894893168,0.042,3806.9,3806.8,9.61297124]
[1753894893352,0.042,3806.9,3806.8,10.07987124]
[1753894894487,0.04,3807.9,3807.6,2.62631937]
[1753894894665,0.04,3807.9,3807.7,4.09226257]
[1753894894863,0.04,3807.9,3807.8,0.1312]
[1753894895090,0.4824,3807.9,3807.8,0.1312]
[1753894895291,0.04,3807.9,3807.8,13.02470385]
[1753894895476,0.4424,3808.8,3808.5,2.62566347]
[1753894895663,0.04,3808.9,3808.7,0.1312]
[1753894895865,0.04,3808.9,3808.8,0.02625498]
[1753894896076,0.04,3808.9,3808.7,2.75675488]
[1753894896253,0.04,3808.9,3808.7,2.62554989]
[1753894896591,0.04,3808.9,3808.8,3.20175382]
[1753894897114,0.04,3808.9,3808.8,3.65925382]
[1753894897693,0.04,3808.9,3808.8,13.65348907]
[1753894897878,0.04,3809.9,3809.6,0.7643]
[1753894898080,0.04,3809.9,3809.7,6.70187122]
[1753894898389,0.04,3809.9,3809.8,0.02624809]
[1753894898865,0.04,3809.9,3809.7,4.10324878]
[1753894899071,0.04,3809.9,3809.7,6.72811593]
[1753894899292,0.04,3809.9,3809.7,6.70187045]
[1753894899601,0.04,3809.9,3809.8,2.6248097]
[1753894899789,0.04,3809.9,3809.7,4.077]
[1753894899964,0.04,3809.9,3809.8,2.6248097]
[1753894900170,0.04,3809.9,3809.7,4.077]
[1753894900595,0.04,3809.9,3809.8,4.0992097]
[1753894900912,0.04,3809.9,3809.8,4.12545779]
[1753894901619,0.4424,3811.6,3810.8,2.62412091]
[1753894901818,0.4424,3811.6,3810.8,7.25212091]
[1753894901985,0.479,3811.8,3810.8,8.17652091]
[1753894902183,0.479,3811.3,3810.8,4.078]
[1753894902382,0.4424,3811.4,3810.8,6.70212091]
[1753894902720,0.9214,3811.2,3809.8,0.4575]
[1753894902929,0.9614,3810.9,3810.4,3.0]
[1753894903127,0.9214,3810.8,3809.9,0.7678]
[1753894903417,0.9214,3810.8,3810.0,0.02624671]
[1753894903609,0.9214,3810.8,3810.3,2.62445309]
[1753894903812,0.479,3810.7,3810.4,0.02624396]
[1753894904025,0.479,3810.7,3810.4,4.081]
[1753894904314,0.04,3810.9,3810.4,4.081]
[1753894904315,0.04,3810.9,3810.5,2.62432045]
[1753894904522,0.04,3810.9,3810.6,8.76303525]
[1753894904688,0.04,3810.9,3810.7,4.10724189]
[1753894905421,0.04,3810.9,3810.7,6.73142347]
[1753894905620,0.04,3810.9,3810.7,6.70518158]
[1753894905800,0.04,3810.9,3810.8,2.62412091]
[1753894906002,0.04,3810.9,3810.7,6.70518133]
[1753894906308,0.04,3810.9,3810.8,0.1312]
[1753894906625,0.04,3810.9,3810.8,2.75532091]
[1753894906924,0.04,3810.9,3810.8,0.1312]
[1753894907151,0.5039,3810.9,3810.8,0.1312]
[1753894907321,0.04,3810.9,3810.8,0.1312]
[1753894907626,0.042,3810.9,3810.8,0.1312]
[1753894907782,0.002,3810.9,3810.8,3.79436211]
[1753894907988,0.002,3810.9,3810.8,9.017112]
[1753894908185,0.002,3810.9,3810.8,8.9908708]
[1753894908418,0.002,3810.9,3810.8,8.5594708]
[1753894909031,0.002,3810.9,3810.8,8.0966708]
[1753894910146,0.4659,3810.9,3810.8,0.1312]
[1753894910314,0.909,3810.9,3810.8,4.2082]
[1753894910511,0.909,3810.9,3810.8,0.1312]
[1753894911322,0.002,3810.9,3810.8,0.1312]
[1753894911645,1.7414,3810.9,3809.6,0.8192]
[1753894911937,1.02166,3810.9,3810.5,0.1312]
[1753894912236,0.907,3810.8,3810.4,0.1312]
[1753894912654,0.907,3810.7,3810.4,0.1312]
[1753894913002,0.907,3810.6,3810.4,0.1312]
[1753894913540,0.907,3810.5,3810.4,0.1312]
[1753894913911,0.4431,3810.5,3810.4,0.1312]
[1753894914102,0.907,3810.5,3810.4,0.1312]
[1753894917937,0.7842,3810.4,3810.1,0.1312]
[1753894918104,1.6912,3810.4,3810.1,0.1312]
[1753894918305,0.907,3810.3,3810.1,0.1312]
[1753894918841,0.7842,3810.4,3810.1,0.1312]
[1753894919138,10.4639,3810.8,3810.3,0.1312]
[1753894919340,10.4639,3810.8,3810.4,2.62439638]
[1753894919503,10.0,3810.8,3810.4,2.65064034]
[1753894919836,10.0,3810.8,3810.7,0.1312]
[1753894920641,10.4639,3810.8,3810.7,0.1312]
[1753894920824,10.0,3810.8,3810.7,0.1312]
[1753894922341,10.907,3810.8,3810.7,0.1312]
[1753894922948,10.4639,3810.8,3810.7,0.1312]
[1753894924135,10.907,3810.8,3810.7,0.1312]
[1753894924443,11.6785,3810.8,3810.5,0.1312]
[1753894924617,0.907,3810.7,3810.4,0.1312]
[1753894924823,0.8292,3810.6,3809.8,4.071]
[1753894925020,0.8292,3810.6,3810.2,0.1312]
[1753894925266,0.907,3810.5,3810.2,0.1312]
[1753894925752,0.4639,3810.4,3810.2,0.1312]
[1753894926053,0.4639,3810.4,3809.8,4.071]
[1753894926054,10.0,3810.8,3810.1,0.796]
[1753894926222,10.0,3810.8,3810.3,2.75566526]
[1753894926423,10.0,3810.8,3810.7,0.1312]
[1753894927017,10.907,3810.8,3810.7,0.1312]
[1753894927424,10.907,3810.8,3809.9,3.0]
[1753894927425,0.8297,3810.7,3810.6,0.1312]
[1753894927642,1.7367,3810.7,3810.6,0.1312]
[1753894928832,1.7367,3810.7,3809.9,5.62472203]
[1753894929054,0.907,3810.6,3810.3,0.1312]
[1753894929238,0.8297,3810.7,3810.3,0.001]
[1753894929416,10.0,3810.8,3810.6,2.62421116]
[1753894929615,4.076,3810.7,3810.6,0.4628]
[1753894929851,4.076,3810.7,3810.3,0.7922]
[1753894930043,4.5399,3810.7,3810.6,0.1312]
[1753894930241,4.076,3810.7,3810.6,0.1312]
[1753894930411,4.081,3810.7,3810.6,0.1312]
[1753894930611,4.08,3810.7,3810.6,0.1312]
[1753894932148,4.987,3810.7,3810.6,0.1312]
[1753894932347,5.7513,3810.7,3810.6,0.1312]
[1753894932546,1.6713,3810.7,3810.6,0.1312]
[1753894932742,5.7523,3810.7,3810.6,0.1312]
[1753894934092,5.7523,3810.7,3810.3,0.001]
[1753894934233,5.7523,3810.7,3810.4,0.1312]
[1753894934433,0.907,3810.6,3810.4,0.1312]
[1753894935099,0.907,3810.5,3810.4,0.1312]
[1753894937859,0.9315,3810.5,3810.4,0.1312]
[1753894938801,0.7643,3810.7,3810.4,0.1312]
[1753894939004,4.075,3810.6,3810.4,0.4068686]
[1753894939295,4.075,3810.6,3810.3,0.001]
[1753894939463,4.075,3810.6,3810.5,0.1312]
[1753894939663,5.0325,3810.6,3810.3,0.001]
[1753894939891,0.9575,3810.5,3810.3,0.001]
[1753894940268,4.075,3810.6,3810.3,0.001]